[Event "10th Cesme Open-A 2024"]
[Site "Cesme"]
[Date "2024.06.24"]
[Round "2"]
[White "Karaoglan, Kivanc"]
[Black "Tinmaz, Kerem"]
[Result "1-0"]
[ECO "B50"]
[WhiteElo "2274"]
[BlackElo "2058"]
[Annotator "RC"]
[PlyCount "77"]
[EventDate "2024.06.23"]
[EventType "swiss"]
[EventCountry "TUR"]
[SourceTitle "playchess.com"]
[Source "ChessBase"]
[SourceQuality "1"]
[TimeControl "5400+30"]

1. e4 {[%emt 0:01:00]} c5 {[%emt 0:01:00]} 2. Nf3 {[%emt 0:00:30]} d6 {[%emt 0:00:00]} 3. b3 {[%emt 0:04:30]} Nf6 {[%emt 0:04:00]} 4. Bb5+ {[%emt 0:00:30]} Bd7 {[%emt 0:02:30]} 5. Bxd7+ {[%emt 0:01:30]} Qxd7 {[%emt 0:00:30]} 6. d3 {[%emt 0:02:30]} g6 {[%emt 0:03:30]} 7. Bb2 {[%emt 0:02:30]} Bg7 {[%emt 0:00:30]} 8. O-O {[%emt 0:02:30]} O-O {[%emt 0:02:30]} 9. c4 {[%emt 0:05:30]} Nc6 {[%emt 0:03:30]} 10. Nc3 {[%emt 0:01:30]} Nh5 {[%emt 0:11:30]} 11. Na4 {[%emt 0:24:30]} Bxb2 {[%emt 0:05:30]} 12. Nxb2 {[%emt 0:00:30]} e5 {[%emt 0:00:00]} 13. Na4 {[%emt 0:04:30]} f5 {[%emt 0:04:00]} 14. Nc3 {[%emt 0:03:30]} Rae8 {[%emt 0:12:30]} 15. Re1 {[%emt 0:04:30]} Kg7 {[%emt 0:11:30]} 16. a3 {[%emt 0:02:30]} a5 {[%emt 0:00:30]} 17. Nd5 {[%emt 0:01:30]} Ne7 {[%emt 0:05:30]} 18. Ng5 {[%emt 0:04:30]} h6 {[%emt 0:09:30]} 19. Nb6 {[%emt 0:00:30]} Qc6 {[%emt 0:00:30]} 20. Ne6+ {[%emt 0:00:00]} Kf7 {[%emt 0:01:50]} 21. Nxf8 {[%emt 0:00:00]} Rxf8 {[%emt 0:04:16]} 22. Nd5 {[%emt 0:20:35]} Nxd5 {[%emt 0:02:02]} 23. cxd5 {[%emt 0:00:00]} Qd7 {[%emt 0:00:36]} 24. b4 {[%emt 0:00:00]} axb4 {[%emt 0:02:08]} 25. axb4 {[%emt 0:00:00]} cxb4 {[%emt 0:00:09]} 26. Ra4 {[%emt 0:00:00]} Qb5 {[%emt 0:07:19]} 27. Qb3 {[%emt 0:00:00]} Nf4 {[%emt 0:03:36]} 28. Rxb4 {[%emt 0:00:00]} Qxd3 {[%emt 0:00:30]} 29. Rxb7+ {[%emt 0:00:00]} Kg8 {[%emt 0:02:28]} 30. Qa4 {[%emt 0:00:00]} Qc3 {[%emt 0:00:54]} 31. Rd1 {[%emt 0:00:07]} Qc8 {[%emt 0:00:35]} 32. Qa7 {[%emt 0:00:18]} Nh5 {[%emt 0:00:21]} 33. Rh7 {[%emt 0:04:11]} Qb8 {[%emt 0:00:37]} 34. exf5 {[%emt 0:02:01]} Qxa7 {[%emt 0:00:56]} 35. Rxa7 {[%emt 0:00:30]} gxf5 {[%emt 0:00:11]} 36. Rd7 {[%emt 0:00:19]} Rf6 {[%emt 0:00:17]} 37. g3 {[%emt 0:02:01]} Ng7 {[%emt 0:01:09]} 38. Ra1 {[%emt 0:00:19]} Rg6 {[%emt 0:00:03]} 39. Ra6 {[%emt 0:00:36]} 1-0

[Event "10th Cesme Open-A 2024"]
[Site "Cesme"]
[Date "2024.06.24"]
[Round "2"]
[White "Eke, Salih"]
[Black "Grover, Sahaj"]
[Result "1/2-1/2"]
[ECO "D37"]
[WhiteElo "2251"]
[BlackElo "2510"]
[Annotator "TA"]
[PlyCount "96"]
[EventDate "2024.06.23"]
[EventType "swiss"]
[EventCountry "TUR"]
[SourceTitle "playchess.com"]
[Source "ChessBase"]
[SourceQuality "1"]
[TimeControl "5400+30"]

{[%evp 9,96,25,26,27,32,22,32,22,29,24,20,19,32,22,28,29,26,17,19,18,25,7,12,0,0,0,8,0,19,-6,0,-14,0,-69,-77,-55,-69,-125,-79,-110,-91,-75,-72,-75,-64,-64,0,0,0,0,8,-14,-8,-17,-5,-9,-5,-4,-5,-4,-5,-5,0,-12,-4,-4,0,0,0,0,0,0,0,0,0,0,0,0,0,0,0,0,0,0,0,0,0,0,8]} 1. d4 {[%emt 0:01:00]} d5 {[%emt 0:01:00]} 2. c4 {[%emt 0:00:30]} e6 {[%emt 0:00:30]} 3. Nf3 {[%emt 0:00:30]} a6 {[%emt 0:00:00]} 4. cxd5 {[%emt 0:01:30]} exd5 {[%emt 0:00:00]} 5. Nc3 {[%emt 0:00:30]} Nf6 {[%emt 0:00:00]} 6. Bg5 {[%emt 0:02:30]} Be6 {[%emt 0:00:00]} 7. e3 {[%emt 0:00:30]} Nbd7 {[%emt 0:00:00]} 8. h3 {[%emt 0:02:30] White is slightly better.} c6 {[%emt 0:00:00]} 9. Bd3 {[%emt 0:00:30]} Bd6 {[%emt 0:00:30]} 10. Bf4 {[%emt 0:00:30]} Qb8 {[%emt 0:00:00]} 11. Bxd6 {[%emt 0:00:00]} Qxd6 {[%emt 0:00:00]} 12. O-O {[%emt 0:00:00]} O-O {[%emt 0:00:30]} 13. Qc2 {[%emt 0:00:30]} g6 {[%emt 0:00:00]} 14. Rfc1 {[%emt 0:00:30]} Qe7 {[%emt 0:00:00]} 15. a4 {[%emt 0:00:30]} a5 {[%emt 0:00:30]} 16. Re1 {[%emt 0:00:30]} Rfe8 {[%emt 0:06:30]} 17. Ne2 {[%emt 0:07:30]} Nh5 {[%emt 0:00:30]} 18. g4 {[%emt 0:05:30]} Nhf6 {[%emt 0:11:30]} 19. Ng3 {[%emt 0:01:30]} c5 {[%emt 0:06:30]} 20. Bb5 {[%emt 0:06:30]} Rec8 {[%emt 0:02:30]} 21. Qd2 {[%emt 0:12:30]} (21. Qd3 $11) 21... Ne4 $1 $15 {[%emt 0:05:30]} 22. Nxe4 {[%emt 0:01:30]} dxe4 {[%emt 0:01:30]} 23. Bxd7 {[%emt 0:07:30]} (23. Nh2 $15 Rd8 24. Rac1) 23... Bxd7 {[%emt 0:03:30]} ({Black should play} 23... Qxd7 24. Nh2 h5 25. gxh5 Bxh3 (25... gxh5 $2 26. Kh1 $19) 26. hxg6 fxg6) 24. Nh2 {[%emt 0:09:30]} h5 {[%emt 0:03:30]} 25. dxc5 {[%emt 0:13:30]} hxg4 {[%emt 0:00:30]} 26. Red1 {[%emt 0:04:30]} Rd8 {[%emt 0:00:30][%cal Od7a4]} 27. Qd6 $1 {[%emt 0:00:30]} (27. hxg4 $2 Bxg4 (27... Qxc5 28. Qd5 $17) 28. Qe1 Bxd1 29. Rxd1 Qg5+ (29... Qxc5 $2 30. Nf1 $19) 30. Kh1 Rxd1 (30... Qxc5 $2 31. Rc1 $19) 31. Qxd1 Rd8 $19 (31... Qxc5 $2 32. Nf1 $19)) 27... Qg5 {[%emt 0:03:30]} (27... Qxd6 28. Rxd6 Bc6 (28... gxh3 $2 29. Rad1 $18) 29. Nxg4 $11) ({Black should try} 27... Qh4 $15 28. Qf4 Qxh3) 28. Qg3 {[%emt 0:01:39] The position is equal.} Qxc5 {[%emt 0:05:30]} 29. Nxg4 {[%emt 0:00:23]} Bxg4 {[%emt 0:03:30]} 30. Qxg4 {[%emt 0:00:28]} Qe5 {[%emt 0:00:30]} 31. Rxd8+ {[%emt 0:00:54]} Rxd8 $11 {[%emt 0:00:30][%mdl 4096] Endgame. KQR-KQR} 32. Rd1 {[%emt 0:01:43]} Rd3 {[%emt 0:00:00]} 33. Rc1 $1 {[%emt 0:03:00]} Kg7 {[%emt 0:03:00]} (33... Qxb2 $2 34. Rc8+ Kg7 35. Qh4 $18) 34. Rc8 {[%emt 0:01:02] Prevents Rd2.} Qf6 {[%emt 0:05:30] Dodges Qh4} (34... Qxb2 35. Qh4 Qa1+ 36. Kg2 g5 37. Qh8+ (37. Qxe4 Rd1 $14) 37... Kg6 38. Rg8+ (38. Qxa1 Rd5 39. Rf8 Rd6 40. Qe5 Rf6 41. Rg8+ Kh7 42. Qe8 Kh6 43. Qf8+ Kh5 44. Qg7 Rxf2+ 45. Kxf2 Kh4 46. Rh8#) 38... Kf5 39. Qxa1) 35. Rc2 {[%emt 0:02:50] Repels Rd2} Qe5 {[%emt 0:03:30]} 36. Rc4 {[%emt 0:02:52]} (36. Qh4 {simplifies} Qf5 37. Qg4 Qxg4+ 38. hxg4 Rb3 39. Rc5) 36... Qxb2 {[%emt 0:04:30] [#] Strongly threatening ...Qb1+.} 37. Qxe4 {[%emt 0:00:02]} Rd1+ {[%emt 0:02:30]} 38. Kg2 {[%emt 0:00:30]} b5 {[%emt 0:00:30]} 39. Rc5 {[%emt 0:00:59]} bxa4 {[%emt 0:08:30] White must now prevent ...a3.} 40. Qe5+ {[%emt 0:00:30]} Qxe5 {[%emt 0:00:30]} 41. Rxe5 {[%emt 0:00:00] KR-KR} Kf6 {[%emt 0:00:30]} 42. Rxa5 {[%emt 0:00:29]} Ra1 {[%emt 0:00:00]} 43. h4 {[%emt 0:02:16]} a3 {[%emt 0:00:00]} 44. Kf3 {[%emt 0:00:50]} Ke6 {[%emt 0:00:00]} 45. h5 {[%emt 0:00:49]} gxh5 {[%emt 0:00:00]} 46. Rxh5 {[%emt 0:00:30]} f5 {[%emt 0:00:00]} (46... a2 $5 47. Ra5 $8 Kd6 $11) 47. Rh6+ {[%emt 0:00:18]} Kd5 {[%emt 0:00:00]} 48. Ra6 {[%emt 0:01:27]} Ke5 {[%emt 0:00:30] Weighted Error Value: White=0.08 (flawless) /Black=0.08 (flawless) .  Mistake:       	White=2     	Black=2      Inaccurate:     	White=1     	---        OK:         	White=15    	Black=11     Best:        	White=1     	Black=1      Strong:       	White=2     	Black=1} 1/2-1/2

[Event "10th Cesme Open-A 2024"]
[Site "Cesme"]
[Date "2024.06.24"]
[Round "2"]
[White "Ince, Taylan Ruzgar"]
[Black "Isik, Alparslan"]
[Result "0-1"]
[ECO "E04"]
[WhiteElo "2243"]
[BlackElo "2469"]
[Annotator "TA"]
[PlyCount "87"]
[EventDate "2024.06.23"]
[EventType "swiss"]
[EventCountry "TUR"]
[SourceTitle "playchess.com"]
[Source "ChessBase"]
[SourceQuality "1"]
[TimeControl "5400+30"]

{[%evp 13,87,17,52,24,23,32,22,23,9,4,13,4,18,0,0,-25,-27,-48,-46,-43,-27,-39,-20,-108,-97,-110,-113,-103,-98,-121,-98,-166,-164,-171,-171,-169,-163,-167,-168,-168,-170,-179,-179,-422,-302,-396,-302,-310,-292,-379,-306,-324,-320,-388,-397,-485,-464,-635,-642,-1614,-1179,-1159,-1142,-1138,-1129,-1261,-1219,-29987,-29988,-29988,-29989,-29989,-29990,-29991,-29992,-29995]} 1. d4 {[%emt 0:02:00]} d5 {[%emt 0:03:00]} 2. c4 {[%emt 0:00:30]} e6 {[%emt 0:00:30]} 3. Nf3 {[%emt 0:00:30]} Nf6 {[%emt 0:00:30]} 4. g3 {[%emt 0:00:30]} dxc4 {[%emt 0:00:00]} 5. Bg2 {[%emt 0:00:00]} a6 {[%emt 0:00:00]} 6. O-O {[%emt 0:03:00]} Nc6 {[%emt 0:00:00]} 7. e3 {[%emt 0:02:30]} Rb8 {[%emt 0:00:00]} 8. Qe2 {[%emt 0:01:30]} b5 {[%emt 0:01:30]} 9. b3 {[%emt 0:00:30]} cxb3 {[%emt 0:00:30]} 10. axb3 {[%emt 0:00:30] The position is equal.} Rb6 {[%emt 0:06:30]} 11. Bb2 {[%emt 0:07:30]} Be7 {[%emt 0:06:30]} 12. Rc1 {[%emt 0:03:30][%mdl 1024] White has compensation.} Bb7 {[%emt 0:00:30]} 13. Nbd2 {[%emt 0:13:30]} O-O {[%emt 0:06:30]} 14. e4 {[%emt 0:12:30]} Nb4 {[%emt 0:05:30]} 15. e5 {[%emt 0:09:30]} Nd7 {[%emt 0:04:30]} 16. Ne4 {[%emt 0:01:30]} Rc6 {[%emt 0:06:30]} 17. Bc3 {[%emt 0:06:30]} Qa8 {[%emt 0:02:30]} 18. Nfd2 {[%emt 0:06:30]} (18. Rd1 $11 {remains equal.}) 18... Nd5 $17 {[%emt 0:01:30] White is now going downhill.} 19. Bb2 {[%emt 0:02:30]} Rxc1+ {[%emt 0:02:30]} 20. Rxc1 {[%emt 0:00:30]} Rc8 {[%emt 0:00:30]} 21. h4 {[%emt 0:02:30]} c5 {[%emt 0:08:30]} 22. Nd6 {[%emt 0:05:23]} (22. dxc5 $17 {was called for.} Bxc5 (22... Nxc5 23. Nd6 $15) 23. Qg4) 22... Bxd6 $19 {[%emt 0:00:30]} 23. exd6 {[%emt 0:00:04]} cxd4 {[%emt 0:02:30]} 24. Rxc8+ {[%emt 0:00:30]} Qxc8 {[%emt 0:00:30]} 25. Bxd4 {[%emt 0:00:00]} Qc6 {[%emt 0:10:30][%cal Od5c3]} 26. Ne4 {[%emt 0:02:44] [#]} e5 $1 {[%emt 0:01:30]} 27. Bb2 {[%emt 0:00:17]} f5 {[%emt 0:01:30]} 28. Qh5 $2 {[%emt 0:12:20]} (28. Ng5 Nc3 (28... Qxd6 29. Qh5 $11) 29. Qf1 Qxg2+ 30. Qxg2 Bxg2 31. Kxg2) 28... fxe4 {[%emt 0:07:30]} 29. Bxe4 {[%emt 0:00:18]} Qxd6 {[%emt 0:09:59] White must now prevent ...N5f6.} 30. Qxh7+ {[%emt 0:01:18]} Kf7 {[%emt 0:00:15] [#] ...N7f6 is the strong threat.} 31. h5 {[%emt 0:01:48]} Nf8 {[%emt 0:02:26] Wards off Bg6+} 32. Qf5+ {[%emt 0:00:30]} Qf6 {[%emt 0:00:30]} 33. Qg4 {[%emt 0:00:02]} Bc6 {[%emt 0:00:55]} 34. Bb1 {[%emt 0:01:48]} Ne7 {[%emt 0:02:49]} 35. f4 {[%emt 0:00:47]} Qd6 {[%emt 0:01:25] Hoping for ...Qd2.} 36. Bxe5 {[%emt 0:01:59]} Qc5+ {[%emt 0:00:18]} 37. Kf1 {[%emt 0:00:37]} Qc1+ {[%emt 0:00:30]} 38. Ke2 {[%emt 0:00:02]} Qxb1 {[%emt 0:00:21]} 39. Qxg7+ {[%emt 0:00:30]} Ke8 {[%emt 0:00:30] ( -> ...Qc2+)} 40. Bf6 {[%emt 0:00:00]} Qc2+ {[%emt 0:01:27] Black mates.} 41. Ke1 {[%emt 0:00:15]} Qc1+ {[%emt 0:00:30]} 42. Ke2 {[%emt 0:00:00]} Nf5 {[%emt 0:00:38]} 43. Qa7 {[%emt 0:00:13]} Nxg3+ {[%emt 0:00:25]} 44. Kd3 {[%emt 0:00:04] Weighted Error Value: White=0.81/Black=0.38.  Mistake:       	White=3     	---        Inaccurate:     	White=3     	---        OK:         	White=7     	Black=14     Best:        	---       	Black=2      Strong:       	---       	Black=1} 0-1

[Event "10th Cesme Open-A 2024"]
[Site "Cesme"]
[Date "2024.06.24"]
[Round "2"]
[White "Caputcuoglu, Zeki Berke"]
[Black "Fromm, Marius"]
[Result "0-1"]
[ECO "B90"]
[WhiteElo "2239"]
[BlackElo "2465"]
[Annotator "TA"]
[PlyCount "50"]
[EventDate "2024.06.23"]
[EventType "swiss"]
[EventCountry "TUR"]
[SourceTitle "playchess.com"]
[Source "ChessBase"]
[SourceQuality "1"]
[TimeControl "5400+30"]

{[%evp 13,50,12,26,0,0,0,7,8,25,0,5,-133,-114,-125,-120,-123,-135,-139,-123,-199,-212,-530,-438,-458,-450,-602,-612,-628,-627,-841,-789,-808,-845,-857,-902,-906,-910,-1604,-1531]} 1. e4 {[%emt 0:06:00]} c5 {[%emt 0:01:00]} 2. Nf3 {[%emt 0:00:30]} d6 {[%emt 0:00:30]} 3. d4 {[%emt 0:00:30]} cxd4 {[%emt 0:00:30]} 4. Nxd4 {[%emt 0:00:30]} Nf6 {[%emt 0:00:00]} 5. Nc3 {[%emt 0:00:00]} a6 {[%emt 0:00:00]} 6. Be3 {[%emt 0:00:00]} e5 {[%emt 0:00:00]} 7. Nb3 {[%emt 0:00:30]} Be6 {[%emt 0:00:00]} 8. h3 {[%emt 0:00:00]} Be7 {[%emt 0:01:30]} 9. Qf3 {[%emt 0:01:00]} Nbd7 {[%emt 0:00:30][%cal Bb8d7,Bd7b6,Bb6a4][%mdl 32]} 10. g4 {[%emt 0:01:30] The position is equal.} Nb6 {[%emt 0:05:30]} 11. O-O-O {[%emt 0:05:30]} Rc8 {[%emt 0:00:30][%cal Oc8c3] Inhibits Nc5.} 12. Kb1 {[%emt 0:06:30] [#]} (12. Bxb6 $11 Qxb6 13. g5) 12... Rxc3 $1 $17 {[%emt 0:02:30][%mdl 512]} 13. bxc3 {[%emt 0:00:30]} Na4 {[%emt 0:01:30][%cal Of6e4] Threatens to win with ...Nxe4!} 14. Bd2 {[%emt 0:03:30] [#]} d5 $1 {[%emt 0:11:30] Strongly threatening ...Qd6. Black is more active.} 15. Bd3 {[%emt 0:05:30]} O-O {[%emt 0:03:30]} 16. g5 {[%emt 0:06:30] [#]} (16. Rhg1 $17) 16... Qd6 $1 $19 {[%emt 0:02:30][%cal Od6a3] ( -> ...Qa3!)} 17. Bb5 $2 {[%emt 0:20:30]} (17. gxf6 $2 Qa3 18. Bc1 Nxc3+ 19. Ka1 Qxa2#) (17. Ka1 dxe4 18. Bxe4 Nxe4 19. Qxe4) 17... Nxe4 {[%emt 0:13:30] Black is clearly winning.} 18. Bxa4 {[%emt 0:03:30]} b5 {[%emt 0:00:00]} (18... Bxg5 $2 {too greedy.} 19. Bxg5 Nxg5 20. Qe3 $18) (18... Qa3 $2 19. h4 $19) 19. Bxb5 {[%emt 0:03:30]} axb5 {[%emt 0:00:00]} 20. Bc1 {[%emt 0:03:30]} Ra8 {[%emt 0:01:30][%cal Od6a6] White must now prevent ...Qa6!} 21. Rd3 {[%emt 0:09:30]} Qa6 {[%emt 0:08:30]} (21... Bxg5 22. Bxg5 (22. Qxe4 $2 Qa6 $19) 22... Nxg5 23. Qe3 $19) 22. a3 {[%emt 0:00:00]} Bxa3 {[%emt 0:04:30]} 23. Bxa3 {[%emt 0:00:00]} Qxa3 {[%emt 0:00:30]} 24. Rhd1 {[%emt 0:01:30]} Nxg5 {[%emt 0:00:30]} 25. Qe3 {[%emt 0:02:42]} d4 {[%emt 0:01:30] White did not feel at home in the position after the opening.   Weighted Error Value: White=0.98/Black=0.09 (flawless) .  Mistake:       	White=3     	---        Inaccurate:     	White=1     	---        OK:         	White=4     	Black=3      Best:        	White=1     	Black=1      Strong:       	---       	Black=2      Brilliant:      	---       	Black=1} ({Less strong is} 25... Nxh3 26. Rxd5 Bxd5 27. Rxd5 $17) 0-1

[Event "10th Cesme Open-A 2024"]
[Site "Cesme"]
[Date "2024.06.24"]
[Round "2"]
[White "Kirilmaz, Emre"]
[Black "Domalchuk-Jonasson, Aleksandr"]
[Result "1-0"]
[ECO "D31"]
[WhiteElo "2195"]
[BlackElo "2380"]
[Annotator "RC"]
[PlyCount "140"]
[EventDate "2024.06.23"]
[EventType "swiss"]
[EventCountry "TUR"]
[SourceTitle "playchess.com"]
[Source "ChessBase"]
[SourceQuality "1"]
[TimeControl "5400+30"]

1. d4 {[%emt 0:03:00]} d5 {[%emt 0:01:00]} 2. c4 {[%emt 0:01:30]} e6 {[%emt 0:00:30]} 3. Nc3 {[%emt 0:06:30]} a6 {[%emt 0:00:30]} 4. cxd5 {[%emt 0:00:30]} exd5 {[%emt 0:00:30]} 5. Nf3 {[%emt 0:00:30]} h6 {[%emt 0:00:00]} 6. Bf4 {[%emt 0:00:30]} Nf6 {[%emt 0:00:00]} 7. e3 {[%emt 0:00:30]} Bd6 {[%emt 0:00:00]} 8. Ne5 {[%emt 0:01:30]} O-O {[%emt 0:01:00]} 9. Be2 {[%emt 0:07:30]} Re8 {[%emt 0:05:30]} 10. Bf3 {[%emt 0:01:30]} c6 {[%emt 0:07:30]} 11. O-O {[%emt 0:01:30]} Qe7 {[%emt 0:02:30]} 12. Na4 {[%emt 0:08:30]} Nbd7 {[%emt 0:02:30]} 13. Nxd7 {[%emt 0:00:30]} Bxd7 {[%emt 0:03:30]} 14. Bxd6 {[%emt 0:01:30]} Qxd6 {[%emt 0:00:30]} 15. Nc5 {[%emt 0:05:30]} Bc8 {[%emt 0:04:30]} 16. Rc1 {[%emt 0:02:30]} b6 {[%emt 0:02:30]} 17. Na4 {[%emt 0:05:30]} Rb8 {[%emt 0:01:30]} 18. Rc3 {[%emt 0:03:30]} Bd7 {[%emt 0:02:30]} 19. Qc2 {[%emt 0:03:30]} g6 {[%emt 0:18:30]} 20. Rc1 {[%emt 0:02:30]} Rec8 {[%emt 0:00:30]} 21. h3 {[%emt 0:11:30]} a5 {[%emt 0:02:30]} 22. Rb3 {[%emt 0:13:59]} Bf5 {[%emt 0:02:30]} 23. Qd2 {[%emt 0:00:55]} Nd7 {[%emt 0:00:30]} 24. g4 {[%emt 0:03:11]} Be6 {[%emt 0:00:30]} 25. Rbc3 {[%emt 0:01:13]} Nf6 {[%emt 0:11:30]} 26. b3 {[%emt 0:01:25]} Kg7 {[%emt 0:04:30]} 27. Nb2 {[%emt 0:01:08]} c5 {[%emt 0:01:30]} 28. dxc5 {[%emt 0:00:30]} bxc5 {[%emt 0:00:00]} 29. Na4 {[%emt 0:01:24]} Rb5 {[%emt 0:05:00]} 30. Be2 {[%emt 0:01:12]} Ne4 {[%emt 0:08:19]} 31. Qb2 {[%emt 0:00:30]} d4 {[%emt 0:00:05]} 32. exd4 {[%emt 0:07:30]} Nxc3 {[%emt 0:00:38]} 33. Nxc3 {[%emt 0:01:55]} Rb4 {[%emt 0:10:55]} 34. d5 {[%emt 0:00:01]} Kh7 {[%emt 0:00:52]} 35. dxe6 {[%emt 0:00:10]} Qxe6 {[%emt 0:00:21]} 36. Qc2 {[%emt 0:01:04]} Rd4 {[%emt 0:01:07]} 37. Bc4 {[%emt 0:00:30]} Qf6 {[%emt 0:00:00]} 38. Ne2 {[%emt 0:01:24]} Rd7 {[%emt 0:00:36]} 39. Qc3 {[%emt 0:00:01]} Qg5 {[%emt 0:01:04]} 40. Qe3 {[%emt 0:00:32]} Qh4 {[%emt 0:00:28]} 41. Qg3 {[%emt 0:00:47]} Qf6 {[%emt 0:00:30]} 42. Qf4 {[%emt 0:00:00]} Qe7 {[%emt 0:00:30]} 43. Nc3 {[%emt 0:00:24]} Rd4 {[%emt 0:00:00]} 44. Qxf7+ {[%emt 0:00:10]} Qxf7 {[%emt 0:00:13]} 45. Bxf7 {[%emt 0:00:30]} Rf8 {[%emt 0:00:00]} 46. Bc4 {[%emt 0:00:33]} Rd2 {[%emt 0:00:22]} 47. Rf1 {[%emt 0:00:12]} Rf3 {[%emt 0:01:05]} 48. Ne4 {[%emt 0:00:30]} Rxa2 {[%emt 0:00:00]} 49. Kg2 {[%emt 0:01:07]} Rf8 {[%emt 0:01:04]} 50. Rd1 {[%emt 0:00:30]} a4 {[%emt 0:00:30]} 51. Rd7+ {[%emt 0:00:30]} Kh8 {[%emt 0:00:30]} 52. bxa4 {[%emt 0:00:30]} Rxa4 {[%emt 0:00:30]} 53. Bd5 {[%emt 0:01:02]} Rf4 {[%emt 0:01:17]} 54. Nxc5 {[%emt 0:00:37]} Ra5 {[%emt 0:00:05]} 55. Rd8+ {[%emt 0:01:03]} Kh7 {[%emt 0:00:02]} 56. Bg8+ {[%emt 0:00:09]} Kh8 {[%emt 0:00:01]} 57. Bb3+ {[%emt 0:00:34]} Kh7 {[%emt 0:00:01]} 58. Rd7+ {[%emt 0:01:23]} Kh8 {[%emt 0:00:01]} 59. Ne6 {[%emt 0:00:01]} Rf6 {[%emt 0:00:51]} 60. Nd4 {[%emt 0:00:25]} Ra8 {[%emt 0:00:44]} 61. Bd5 {[%emt 0:00:27]} Ra4 {[%emt 0:00:12]} 62. Rd8+ {[%emt 0:00:37]} Kh7 {[%emt 0:00:06]} 63. Rd7+ {[%emt 0:00:45]} Kh8 {[%emt 0:00:01]} 64. Nf3 {[%emt 0:00:18]} Rb4 {[%emt 0:01:29]} 65. g5 {[%emt 0:00:18]} Rf5 {[%emt 0:01:20]} 66. Be6 {[%emt 0:00:43]} Ra5 {[%emt 0:00:17]} 67. gxh6 {[%emt 0:00:38]} Rh5 {[%emt 0:00:01]} 68. Bg4 {[%emt 0:00:53]} Rxh6 {[%emt 0:00:30]} 69. Ng5 {[%emt 0:00:30]} Kg8 {[%emt 0:00:30]} 70. Be6+ {[%emt 0:00:30]} Kf8 {[%emt 0:00:00]} 1-0

[Event "10th Cesme Open-A 2024"]
[Site "Cesme"]
[Date "2024.06.24"]
[Round "2"]
[White "Selbes, Tamer Tarik"]
[Black "Ozsakallioglu, Okan"]
[Result "0-1"]
[ECO "A11"]
[WhiteElo "2183"]
[BlackElo "2402"]
[Annotator "RC"]
[PlyCount "90"]
[EventDate "2024.06.23"]
[EventType "swiss"]
[EventCountry "TUR"]
[SourceTitle "playchess.com"]
[Source "ChessBase"]
[SourceQuality "1"]
[TimeControl "5400+30"]

1. Nf3 {[%emt 0:01:00]} d5 {[%emt 0:08:00]} 2. g3 {[%emt 0:00:00]} c6 {[%emt 0:00:30]} 3. Bg2 {[%emt 0:00:00]} Bg4 {[%emt 0:00:00]} 4. c4 {[%emt 0:01:30]} Nf6 {[%emt 0:03:00]} 5. O-O {[%emt 0:00:30]} e6 {[%emt 0:00:30]} 6. h3 {[%emt 0:00:30]} Bh5 {[%emt 0:00:30]} 7. d4 {[%emt 0:00:30]} Nbd7 {[%emt 0:00:30]} 8. cxd5 {[%emt 0:00:30]} exd5 {[%emt 0:00:30]} 9. Nc3 {[%emt 0:01:30]} Be7 {[%emt 0:06:30]} 10. Nh4 {[%emt 0:00:30]} O-O {[%emt 0:00:30]} 11. Nf5 {[%emt 0:09:30]} Bg6 {[%emt 0:10:30]} 12. Nxe7+ {[%emt 0:00:30]} Qxe7 {[%emt 0:00:30]} 13. Bd2 {[%emt 0:00:30]} Rfe8 {[%emt 0:00:30]} 14. a4 {[%emt 0:00:30]} Ne4 {[%emt 0:00:30]} 15. Bf3 {[%emt 0:00:30]} Nxc3 {[%emt 0:00:30]} 16. Bxc3 {[%emt 0:00:30]} Be4 {[%emt 0:00:30]} 17. a5 {[%emt 0:00:30]} Bxf3 {[%emt 0:00:30]} 18. exf3 {[%emt 0:00:30]} Nf8 {[%emt 0:00:30]} 19. Qb3 {[%emt 0:00:30]} Qd7 {[%emt 0:00:30]} 20. Kg2 {[%emt 0:00:30]} Ne6 {[%emt 0:00:30]} 21. h4 {[%emt 0:00:30]} c5 {[%emt 0:00:30]} 22. dxc5 {[%emt 0:00:30]} Nxc5 {[%emt 0:00:30]} 23. Qb4 {[%emt 0:00:30]} Ne6 {[%emt 0:00:30]} 24. Rad1 {[%emt 0:00:30]} Rac8 {[%emt 0:00:30]} 25. Rd2 {[%emt 0:00:30]} Rc5 {[%emt 0:00:30]} 26. Rfd1 {[%emt 0:00:30]} Qc6 {[%emt 0:00:30]} 27. Qb3 {[%emt 0:00:30]} Rd8 {[%emt 0:00:30]} 28. Bb4 {[%emt 0:00:30]} Rb5 {[%emt 0:00:30]} 29. Qa3 {[%emt 0:00:30]} d4 {[%emt 0:00:30]} 30. Rd3 {[%emt 0:00:30]} Rdd5 {[%emt 0:00:30]} 31. b3 {[%emt 0:00:30]} h6 {[%emt 0:00:30]} 32. Rc1 {[%emt 0:00:30]} Qd7 {[%emt 0:00:30]} 33. Rc4 {[%emt 0:55:30]} g5 {[%emt 0:34:30]} 34. Qc1 {[%emt 0:14:13]} gxh4 {[%emt 0:04:30]} 35. Qxh6 {[%emt 0:02:51]} Rh5 {[%emt 0:15:21]} 36. Rdxd4 {[%emt 0:01:54]} Nxd4 {[%emt 0:02:54]} 37. Qf8+ {[%emt 0:00:30]} Kh7 {[%emt 0:00:00]} 38. Rc8 {[%emt 0:01:30]} Kg6 {[%emt 0:06:12]} 39. Qg8+ {[%emt 0:01:57]} Kf6 {[%emt 0:00:04]} 40. Rd8 {[%emt 0:00:55]} h3+ {[%emt 0:01:25]} 41. Kh1 {[%emt 0:00:12]} Qf5 {[%emt 0:02:28]} 42. Rd6+ {[%emt 0:00:34]} Ne6 {[%emt 0:00:20]} 43. Qd8+ {[%emt 0:00:30]} Kg7 {[%emt 0:00:00]} 44. Bc3+ {[%emt 0:00:31]} Re5 {[%emt 0:00:00]} 45. Bxe5+ {[%emt 0:02:42]} Qxe5 {[%emt 0:00:01]} 0-1